[Event "Titled Tuesday Blitz May 30 Early 2023"]
[White "WindWhistler11"]
[Black "ChawitAp"]
[WhiteElo "2544"]
[BlackElo "2425"]
[Result "0-1"]
[Round "09"]
[TimeControl "180+2"]
[Date "2023.05.30"]
[WhiteClock "0:00:00"]
[BlackClock "0:01:57"]

1. Nf3 {[%clk 0:00:58]}  d5 {[%clk 0:02:59]} 2. g3 {[%clk 0:00:59]}  c6 {[%clk 0:02:59]} 3. d3 {[%clk 0:00:59]}  Nf6 {[%clk 0:02:58]} 4. Nbd2 {[%clk 0:01:00]}  Bg4 {[%clk 0:02:58]} 5. e4 {[%clk 0:01:01]}  dxe4 {[%clk 0:02:58]} 6. dxe4 {[%clk 0:01:01]}  Nbd7 {[%clk 0:02:58]} 7. Bg2 {[%clk 0:01:01]}  Qc7 {[%clk 0:02:56]} 8. h3 {[%clk 0:01:02]}  Bxf3 {[%clk 0:02:56]} 9. Qxf3 {[%clk 0:01:02]}  e5 {[%clk 0:02:55]} 10. Qe2 {[%clk 0:01:03]}  Bc5 {[%clk 0:02:56]} 11. a3 {[%clk 0:01:02]}  a5 {[%clk 0:02:55]} 12. O-O {[%clk 0:01:03]}  a4 {[%clk 0:02:56]} 13. Nc4 {[%clk 0:00:52]}  O-O {[%clk 0:02:47]} 14. Kh2 {[%clk 0:00:50]}  Rfd8 {[%clk 0:02:43]} 15. f4 {[%clk 0:00:37]}  exf4 {[%clk 0:02:26]} 16. Bxf4 {[%clk 0:00:35]}  Qc8 {[%clk 0:02:24]} 17. e5 {[%clk 0:00:33]}  Nd5 {[%clk 0:02:21]} 18. e6 {[%clk 0:00:33]}  N7f6 {[%clk 0:02:15]} 19. exf7+ {[%clk 0:00:31]}  Kxf7 {[%clk 0:02:16]} 20. Ne5+ {[%clk 0:00:22]}  Kg8 {[%clk 0:02:16]} 21. Bg5 {[%clk 0:00:20]}  Re8 {[%clk 0:02:10]} 22. Bxf6 {[%clk 0:00:18]}  Nxf6 {[%clk 0:01:56]} 23. Qc4+ {[%clk 0:00:17]}  Qe6 {[%clk 0:01:56]} 24. Qxe6+ {[%clk 0:00:00]}  Rxe6 {[%clk 0:01:57]} 0-1


[Site "https://www.chess.com"]

[Event "Titled Tuesday Blitz May 30 Early 2023"]
[White "Hajiyev, Kanan"]
[Black "Tologon tegin, Semetei"]
[WhiteFideId "13404148"]
[BlackFideId "13800574"]
[WhiteElo "2103"]
[BlackElo "2247"]
[Result "0-1"]
[Round "09"]
[TimeControl "180+2"]
[Date "2023.05.30"]
[WhiteClock "0:00:10"]
[BlackClock "0:00:59"]

1. c4 {[%clk 0:02:02]}  e5 {[%clk 0:02:58]} 2. b3 {[%clk 0:01:59]}  Nc6 {[%clk 0:02:57]} 3. Bb2 {[%clk 0:02:00]}  Nf6 {[%clk 0:02:57]} 4. g3 {[%clk 0:01:58]}  Bc5 {[%clk 0:02:54]} 5. Bg2 {[%clk 0:01:57]}  O-O {[%clk 0:02:54]} 6. e3 {[%clk 0:01:56]}  d5 {[%clk 0:02:54]} 7. cxd5 {[%clk 0:01:56]}  Nxd5 {[%clk 0:02:54]} 8. Nc3 {[%clk 0:01:57]}  Ndb4 {[%clk 0:02:54]} 9. Bf1 {[%clk 0:01:42]}  Nd3+ {[%clk 0:02:46]} 10. Bxd3 {[%clk 0:01:41]}  Qxd3 {[%clk 0:02:47]} 11. Qe2 {[%clk 0:01:37]}  Nb4 {[%clk 0:02:46]} 12. Rc1 {[%clk 0:01:23]}  Qd8 {[%clk 0:02:16]} 13. Kf1 {[%clk 0:01:15]}  Nd3 {[%clk 0:02:10]} 14. Rb1 {[%clk 0:01:14]}  b6 {[%clk 0:02:03]} 15. f3 {[%clk 0:01:08]}  Ba6 {[%clk 0:01:56]} 16. b4 {[%clk 0:00:48]}  Nxb4 {[%clk 0:01:44]} 17. Nb5 {[%clk 0:00:48]}  c6 {[%clk 0:01:42]} 18. a4 {[%clk 0:00:40]}  cxb5 {[%clk 0:01:35]} 19. axb5 {[%clk 0:00:41]}  Bb7 {[%clk 0:01:35]} 20. Bxe5 {[%clk 0:00:42]}  Nd3 {[%clk 0:01:27]} 21. Bc3 {[%clk 0:00:41]}  a6 {[%clk 0:01:25]} 22. Nh3 {[%clk 0:00:38]}  axb5 {[%clk 0:01:24]} 23. Kg2 {[%clk 0:00:38]}  b4 {[%clk 0:01:21]} 24. Ba1 {[%clk 0:00:38]}  Ra2 {[%clk 0:01:19]} 25. Bd4 {[%clk 0:00:25]}  Ne5 {[%clk 0:01:04]} 26. Rb2 {[%clk 0:00:16]}  Rxb2 {[%clk 0:01:00]} 27. Bxb2 {[%clk 0:00:14]}  Bxf3+ {[%clk 0:01:00]} 28. Qxf3 {[%clk 0:00:13]}  Nxf3 {[%clk 0:01:00]} 29. Kxf3 {[%clk 0:00:13]}  Qd5+ {[%clk 0:00:59]} 30. e4 {[%clk 0:00:10]}  Qd3+ {[%clk 0:00:59]} 0-1


[Site "https://www.chess.com"]

[Event "Titled Tuesday Blitz May 30 Early 2023"]
[White "Mazurkiewicz, Michal"]
[Black "Shvedova, Alexandra"]
[WhiteFideId "1124943"]
[BlackFideId "54154782"]
[WhiteElo "2054"]
[BlackElo "1973"]
[Result "1/2-1/2"]
[Round "09"]
[TimeControl "180+2"]
[Date "2023.05.30"]
[WhiteClock "0:00:12"]
[BlackClock "0:00:30"]

1. e4 {[%clk 0:03:00]}  c5 {[%clk 0:03:00]} 2. Nf3 {[%clk 0:03:00]}  d6 {[%clk 0:03:01]} 3. g3 {[%clk 0:03:00]}  Nf6 {[%clk 0:02:59]} 4. d3 {[%clk 0:03:00]}  Nc6 {[%clk 0:02:58]} 5. Bg2 {[%clk 0:03:01]}  g6 {[%clk 0:02:58]} 6. O-O {[%clk 0:03:01]}  Bg7 {[%clk 0:02:59]} 7. Re1 {[%clk 0:02:59]}  O-O {[%clk 0:02:59]} 8. e5 {[%clk 0:02:54]}  dxe5 {[%clk 0:02:58]} 9. Nxe5 {[%clk 0:02:55]}  Nxe5 {[%clk 0:02:50]} 10. Rxe5 {[%clk 0:02:56]}  Nd7 {[%clk 0:02:49]} 11. Re1 {[%clk 0:02:56]}  e5 {[%clk 0:02:42]} 12. Nd2 {[%clk 0:02:53]}  Rb8 {[%clk 0:02:34]} 13. Nc4 {[%clk 0:02:36]}  Qc7 {[%clk 0:02:31]} 14. a4 {[%clk 0:02:21]}  b6 {[%clk 0:02:30]} 15. h4 {[%clk 0:02:21]}  Bb7 {[%clk 0:02:29]} 16. h5 {[%clk 0:02:21]}  Bxg2 {[%clk 0:02:24]} 17. Kxg2 {[%clk 0:02:22]}  Qc6+ {[%clk 0:02:22]} 18. Qf3 {[%clk 0:02:22]}  Qxf3+ {[%clk 0:02:17]} 19. Kxf3 {[%clk 0:02:23]}  h6 {[%clk 0:02:16]} 20. hxg6 {[%clk 0:02:21]}  fxg6+ {[%clk 0:02:15]} 21. Kg2 {[%clk 0:02:22]}  Rbe8 {[%clk 0:02:10]} 22. Bd2 {[%clk 0:02:21]}  Kh7 {[%clk 0:01:59]} 23. a5 {[%clk 0:02:17]}  b5 {[%clk 0:01:55]} 24. Nd6 {[%clk 0:02:16]}  Rb8 {[%clk 0:01:56]} 25. a6 {[%clk 0:02:00]}  Rb6 {[%clk 0:01:52]} 26. Ne4 {[%clk 0:01:58]}  g5 {[%clk 0:01:46]} 27. Be3 {[%clk 0:01:55]}  Rc6 {[%clk 0:01:44]} 28. c4 {[%clk 0:01:53]}  Rb8 {[%clk 0:01:39]} 29. b3 {[%clk 0:01:04]}  Kg6 {[%clk 0:01:28]} 30. Ra5 {[%clk 0:01:03]}  bxc4 {[%clk 0:01:28]} 31. bxc4 {[%clk 0:01:04]}  Bf8 {[%clk 0:01:28]} 32. Rb5 {[%clk 0:01:03]}  Rbb6 {[%clk 0:01:20]} 33. Rxb6 {[%clk 0:00:37]}  Rxb6 {[%clk 0:01:21]} 34. Ra1 {[%clk 0:00:37]}  Rb3 {[%clk 0:01:00]} 35. Ra5 {[%clk 0:00:34]}  Rxd3 {[%clk 0:01:00]} 36. Nxc5 {[%clk 0:00:34]}  Nxc5 {[%clk 0:00:51]} 37. Bxc5 {[%clk 0:00:34]}  Bxc5 {[%clk 0:00:51]} 38. Rxc5 {[%clk 0:00:35]}  Rd6 {[%clk 0:00:51]} 39. Rxe5 {[%clk 0:00:24]}  Rxa6 {[%clk 0:00:51]} 40. Rb5 {[%clk 0:00:21]}  Rc6 {[%clk 0:00:49]} 41. c5 {[%clk 0:00:20]}  Kf5 {[%clk 0:00:49]} 42. Kf3 {[%clk 0:00:19]}  g4+ {[%clk 0:00:46]} 43. Ke3 {[%clk 0:00:19]}  Ke5 {[%clk 0:00:47]} 44. Ra5 {[%clk 0:00:19]}  a6 {[%clk 0:00:44]} 45. Kd3 {[%clk 0:00:13]}  Kd5 {[%clk 0:00:44]} 46. Ke3 {[%clk 0:00:13]}  Ke5 {[%clk 0:00:41]} 47. Kd3 {[%clk 0:00:11]}  Kd5 {[%clk 0:00:37]} 48. Ke3 {[%clk 0:00:12]}  Ke5 {[%clk 0:00:30]} 1/2-1/2


[Site "https://www.chess.com"]

[Event "Titled Tuesday Blitz May 30 Early 2023"]
[White "Bilan, Danila"]
[Black "Harriott, Tyrell"]
[WhiteFideId "24161918"]
[BlackFideId "2086484"]
[WhiteElo "2182"]
[BlackElo "2107"]
[Result "1-0"]
[Round "09"]
[TimeControl "180+2"]
[Date "2023.05.30"]
[WhiteClock "0:00:39"]
[BlackClock "0:01:28"]

1. d4 {[%clk 0:02:58]}  e6 {[%clk 0:02:59]} 2. Nf3 {[%clk 0:02:58]}  d5 {[%clk 0:02:59]} 3. c4 {[%clk 0:02:58]}  c6 {[%clk 0:02:59]} 4. e3 {[%clk 0:02:52]}  Bd6 {[%clk 0:02:59]} 5. Nc3 {[%clk 0:02:52]}  f5 {[%clk 0:02:59]} 6. Ne5 {[%clk 0:02:49]}  Nf6 {[%clk 0:02:59]} 7. f4 {[%clk 0:02:45]}  O-O {[%clk 0:02:58]} 8. Be2 {[%clk 0:02:40]}  Nbd7 {[%clk 0:02:45]} 9. Qc2 {[%clk 0:02:37]}  dxc4 {[%clk 0:02:43]} 10. Bxc4 {[%clk 0:02:29]}  Nd5 {[%clk 0:02:40]} 11. O-O {[%clk 0:02:22]}  N7f6 {[%clk 0:02:38]} 12. Bd2 {[%clk 0:02:16]}  Qe8 {[%clk 0:02:38]} 13. Rf3 {[%clk 0:02:13]}  b6 {[%clk 0:02:36]} 14. Rh3 {[%clk 0:01:43]}  Bb7 {[%clk 0:02:36]} 15. a3 {[%clk 0:01:32]}  Qe7 {[%clk 0:02:32]} 16. Be1 {[%clk 0:01:26]}  Rfc8 {[%clk 0:02:28]} 17. Bh4 {[%clk 0:01:23]}  Qe8 {[%clk 0:02:24]} 18. Bxf6 {[%clk 0:01:13]}  Nxf6 {[%clk 0:02:22]} 19. Qxf5 {[%clk 0:01:08]}  Nd5 {[%clk 0:02:07]} 20. Qxh7+ {[%clk 0:01:05]}  Kf8 {[%clk 0:02:05]} 21. Qh8+ {[%clk 0:00:51]}  Ke7 {[%clk 0:02:02]} 22. Qxg7+ {[%clk 0:00:51]}  Kd8 {[%clk 0:02:02]} 23. Qxb7 {[%clk 0:00:47]}  b5 {[%clk 0:01:37]} 24. Bxd5 {[%clk 0:00:41]}  exd5 {[%clk 0:01:28]} 25. Nf7+ {[%clk 0:00:39]} 1-0


[Site "https://www.chess.com"]

[Event "Titled Tuesday Blitz May 30 Early 2023"]
[White "Chylewski, Patryk"]
[Black "Korpics, Zsolt"]
[WhiteFideId "1186191"]
[BlackFideId "705241"]
[WhiteElo "2163"]
[BlackElo "2371"]
[Result "1-0"]
[Round "09"]
[TimeControl "180+2"]
[Date "2023.05.30"]
[WhiteClock "0:00:18"]
[BlackClock "0:00:00"]

1. e4 {[%clk 0:03:00]}  c5 {[%clk 0:02:59]} 2. Nf3 {[%clk 0:03:00]}  e6 {[%clk 0:02:59]} 3. g3 {[%clk 0:03:00]}  Nc6 {[%clk 0:02:51]} 4. Bg2 {[%clk 0:03:00]}  Nf6 {[%clk 0:02:48]} 5. Qe2 {[%clk 0:03:00]}  d6 {[%clk 0:02:45]} 6. O-O {[%clk 0:03:00]}  Be7 {[%clk 0:02:45]} 7. c3 {[%clk 0:02:59]}  O-O {[%clk 0:02:44]} 8. d4 {[%clk 0:03:00]}  cxd4 {[%clk 0:02:38]} 9. cxd4 {[%clk 0:03:01]}  e5 {[%clk 0:02:19]} 10. d5 {[%clk 0:02:48]}  Nb8 {[%clk 0:02:18]} 11. Nc3 {[%clk 0:02:48]}  Bg4 {[%clk 0:02:12]} 12. Be3 {[%clk 0:02:47]}  Nbd7 {[%clk 0:02:10]} 13. Rac1 {[%clk 0:02:44]}  a6 {[%clk 0:02:08]} 14. h3 {[%clk 0:02:34]}  Bxf3 {[%clk 0:02:06]} 15. Bxf3 {[%clk 0:02:35]}  Rc8 {[%clk 0:01:59]} 16. Rc2 {[%clk 0:02:31]}  b5 {[%clk 0:01:47]} 17. Rfc1 {[%clk 0:02:30]}  Nb6 {[%clk 0:01:22]} 18. Bxb6 {[%clk 0:02:17]}  Qxb6 {[%clk 0:01:22]} 19. Nd1 {[%clk 0:02:17]}  Qb7 {[%clk 0:01:17]} 20. Ne3 {[%clk 0:02:17]}  g6 {[%clk 0:01:13]} 21. Rc6 {[%clk 0:02:09]}  Rxc6 {[%clk 0:00:31]} 22. dxc6 {[%clk 0:02:09]}  Qb6 {[%clk 0:00:23]} 23. Nd5 {[%clk 0:02:08]}  Nxd5 {[%clk 0:00:22]} 24. exd5 {[%clk 0:02:07]}  Qc7 {[%clk 0:00:23]} 25. a4 {[%clk 0:02:02]}  Rb8 {[%clk 0:00:20]} 26. axb5 {[%clk 0:02:00]}  axb5 {[%clk 0:00:20]} 27. Ra1 {[%clk 0:01:59]}  f5 {[%clk 0:00:16]} 28. Qe3 {[%clk 0:01:59]}  Bd8 {[%clk 0:00:15]} 29. Ra7 {[%clk 0:01:55]}  Qb6 {[%clk 0:00:14]} 30. Qxb6 {[%clk 0:01:53]}  Bxb6 {[%clk 0:00:13]} 31. Rd7 {[%clk 0:01:51]}  Rc8 {[%clk 0:00:03]} 32. Be2 {[%clk 0:01:50]}  Rc7 {[%clk 0:00:01]} 33. Rxd6 {[%clk 0:01:47]}  b4 {[%clk 0:00:01]} 34. b3 {[%clk 0:01:39]}  e4 {[%clk 0:00:02]} 35. Ba6 {[%clk 0:01:35]}  Kf7 {[%clk 0:00:02]} 36. Bb7 {[%clk 0:01:33]}  Ke7 {[%clk 0:00:02]} 37. Re6+ {[%clk 0:01:33]}  Kf7 {[%clk 0:00:02]} 38. Kf1 {[%clk 0:01:27]}  Re7 {[%clk 0:00:03]} 39. Bc8 {[%clk 0:00:18]}  Rxe6 {[%clk 0:00:03]} 40. Bxe6+ {[%clk 0:00:18]}  Ke7 {[%clk 0:00:03]} 41. Bg8 {[%clk 0:00:18]}  h6 {[%clk 0:00:03]} 42. Bh7 {[%clk 0:00:19]}  g5 {[%clk 0:00:02]} 43. Bxf5 {[%clk 0:00:19]}  e3 {[%clk 0:00:03]} 44. fxe3 {[%clk 0:00:18]}  Bxe3 {[%clk 0:00:00]} 45. c7 {[%clk 0:00:18]} 1-0


[Site "https://www.chess.com"]

[Event "Titled Tuesday Blitz May 30 Early 2023"]
[White "Jaskolka, Tomasz"]
[Black "Avalos Parra, Joao"]
[WhiteFideId "1170791"]
[BlackFideId "3402541"]
[WhiteElo "2155"]
[BlackElo "2173"]
[Result "1-0"]
[Round "09"]
[TimeControl "180+2"]
[Date "2023.05.30"]
[WhiteClock "0:00:10"]
[BlackClock "0:00:08"]

1. e4 {[%clk 0:03:00]}  e5 {[%clk 0:03:00]} 2. Nf3 {[%clk 0:03:00]}  Nc6 {[%clk 0:03:00]} 3. Bc4 {[%clk 0:03:00]}  Bc5 {[%clk 0:02:59]} 4. b4 {[%clk 0:03:01]}  Bxb4 {[%clk 0:02:59]} 5. c3 {[%clk 0:03:01]}  Be7 {[%clk 0:03:00]} 6. d4 {[%clk 0:03:01]}  Na5 {[%clk 0:03:00]} 7. Bd3 {[%clk 0:03:01]}  d6 {[%clk 0:02:53]} 8. O-O {[%clk 0:03:01]}  Nf6 {[%clk 0:02:52]} 9. h3 {[%clk 0:02:46]}  O-O {[%clk 0:02:50]} 10. Bg5 {[%clk 0:02:47]}  Nc6 {[%clk 0:02:41]} 11. Nbd2 {[%clk 0:02:46]}  h6 {[%clk 0:02:31]} 12. Be3 {[%clk 0:02:43]}  Re8 {[%clk 0:02:29]} 13. Rb1 {[%clk 0:02:43]}  Bf8 {[%clk 0:02:27]} 14. Qa4 {[%clk 0:02:38]}  Bd7 {[%clk 0:02:20]} 15. Qc2 {[%clk 0:02:25]}  Qc8 {[%clk 0:02:13]} 16. Bb5 {[%clk 0:02:19]}  a6 {[%clk 0:02:09]} 17. Bc4 {[%clk 0:02:10]}  b5 {[%clk 0:02:03]} 18. Bb3 {[%clk 0:02:10]}  Na5 {[%clk 0:02:01]} 19. dxe5 {[%clk 0:02:08]}  dxe5 {[%clk 0:01:59]} 20. Rfd1 {[%clk 0:02:03]}  Nxb3 {[%clk 0:01:58]} 21. axb3 {[%clk 0:02:03]}  c5 {[%clk 0:01:55]} 22. c4 {[%clk 0:02:04]}  b4 {[%clk 0:01:53]} 23. Qb2 {[%clk 0:01:56]}  Bc6 {[%clk 0:01:30]} 24. Nxe5 {[%clk 0:01:50]}  Nxe4 {[%clk 0:01:29]} 25. Nxc6 {[%clk 0:01:48]}  Qxc6 {[%clk 0:01:27]} 26. Nxe4 {[%clk 0:01:48]}  Rxe4 {[%clk 0:01:26]} 27. Rd5 {[%clk 0:01:45]}  a5 {[%clk 0:01:24]} 28. Rbd1 {[%clk 0:01:39]}  a4 {[%clk 0:01:22]} 29. bxa4 {[%clk 0:01:39]}  Rxc4 {[%clk 0:01:20]} 30. Rd7 {[%clk 0:01:30]}  Qxa4 {[%clk 0:01:13]} 31. Qe2 {[%clk 0:01:26]}  Qa2 {[%clk 0:00:57]} 32. Qf3 {[%clk 0:01:21]}  Rc2 {[%clk 0:00:53]} 33. R1d5 {[%clk 0:01:05]}  Qa1+ {[%clk 0:00:29]} 34. Kh2 {[%clk 0:01:04]}  Qf6 {[%clk 0:00:28]} 35. Rf5 {[%clk 0:01:02]}  Qe6 {[%clk 0:00:28]} 36. Rfxf7 {[%clk 0:00:58]}  Re8 {[%clk 0:00:26]} 37. Qb7 {[%clk 0:00:21]}  Qg6 {[%clk 0:00:21]} 38. Qd5 {[%clk 0:00:17]}  Re6 {[%clk 0:00:13]} 39. Rxf8+ {[%clk 0:00:08]}  Kxf8 {[%clk 0:00:11]} 40. Rd8+ {[%clk 0:00:08]}  Re8 {[%clk 0:00:10]} 41. Bxc5+ {[%clk 0:00:08]}  Rxc5 {[%clk 0:00:10]} 42. Qxc5+ {[%clk 0:00:09]}  Kf7 {[%clk 0:00:09]} 43. Qd5+ {[%clk 0:00:09]}  Kf8 {[%clk 0:00:09]} 44. Qc5+ {[%clk 0:00:08]}  Kg8 {[%clk 0:00:09]} 45. Rxe8+ {[%clk 0:00:04]}  Qxe8 {[%clk 0:00:10]} 46. Qxb4 {[%clk 0:00:04]}  Qe5+ {[%clk 0:00:09]} 47. g3 {[%clk 0:00:05]}  Qe2 {[%clk 0:00:09]} 48. Qb3+ {[%clk 0:00:05]}  Kh7 {[%clk 0:00:08]} 49. Qe3 {[%clk 0:00:05]}  Qc4 {[%clk 0:00:07]} 50. Kg2 {[%clk 0:00:06]}  Qd5+ {[%clk 0:00:07]} 51. Qf3 {[%clk 0:00:04]}  Qd2 {[%clk 0:00:08]} 52. h4 {[%clk 0:00:05]}  Qd6 {[%clk 0:00:08]} 53. Qe3 {[%clk 0:00:05]}  Qd5+ {[%clk 0:00:08]} 54. f3 {[%clk 0:00:05]}  Qd1 {[%clk 0:00:08]} 55. Kf2 {[%clk 0:00:04]}  Qc2+ {[%clk 0:00:08]} 56. Qe2 {[%clk 0:00:04]}  Qc5+ {[%clk 0:00:08]} 57. Kg2 {[%clk 0:00:05]}  Qc3 {[%clk 0:00:04]} 58. g4 {[%clk 0:00:05]}  Qc6 {[%clk 0:00:02]} 59. Qe4+ {[%clk 0:00:03]}  Qxe4 {[%clk 0:00:03]} 60. fxe4 {[%clk 0:00:04]}  Kg6 {[%clk 0:00:04]} 61. Kf3 {[%clk 0:00:05]}  Kf6 {[%clk 0:00:04]} 62. Kf4 {[%clk 0:00:05]}  g5+ {[%clk 0:00:04]} 63. hxg5+ {[%clk 0:00:05]}  hxg5+ {[%clk 0:00:04]} 64. Kf3 {[%clk 0:00:06]}  Ke5 {[%clk 0:00:05]} 65. Ke3 {[%clk 0:00:07]}  Ke6 {[%clk 0:00:06]} 66. Kd4 {[%clk 0:00:07]}  Kd6 {[%clk 0:00:07]} 67. e5+ {[%clk 0:00:08]}  Ke6 {[%clk 0:00:08]} 68. Ke4 {[%clk 0:00:09]}  Ke7 {[%clk 0:00:08]} 69. Kf5 {[%clk 0:00:10]}  Kf7 {[%clk 0:00:09]} 70. Kxg5 {[%clk 0:00:09]}  Ke6 {[%clk 0:00:10]} 71. Kh6 {[%clk 0:00:10]}  Kxe5 {[%clk 0:00:08]} 72. g5 {[%clk 0:00:10]} 1-0


[Site "https://www.chess.com"]

[Event "Titled Tuesday Blitz May 30 Early 2023"]
[White "rikchessmx"]
[Black "Ladan, Nicholas"]
[BlackFideId "30918855"]
[WhiteElo "2327"]
[BlackElo "2167"]
[Result "0-1"]
[Round "09"]
[TimeControl "180+2"]
[Date "2023.05.30"]
[WhiteClock "0:01:24"]
[BlackClock "0:01:50"]

1. e4 {[%clk 0:02:57]}  e5 {[%clk 0:02:59]} 2. Nf3 {[%clk 0:02:56]}  Nc6 {[%clk 0:03:00]} 3. Bb5 {[%clk 0:02:52]}  a6 {[%clk 0:02:58]} 4. Ba4 {[%clk 0:02:52]}  Nge7 {[%clk 0:02:58]} 5. O-O {[%clk 0:02:52]}  Ng6 {[%clk 0:02:56]} 6. Bb3 {[%clk 0:02:47]}  Bc5 {[%clk 0:02:52]} 7. c3 {[%clk 0:02:46]}  O-O {[%clk 0:02:48]} 8. d4 {[%clk 0:02:46]}  Ba7 {[%clk 0:02:47]} 9. Bg5 {[%clk 0:02:41]}  Qe8 {[%clk 0:02:46]} 10. d5 {[%clk 0:02:41]}  Nce7 {[%clk 0:02:43]} 11. c4 {[%clk 0:02:38]}  d6 {[%clk 0:02:41]} 12. h3 {[%clk 0:02:36]}  f5 {[%clk 0:02:35]} 13. Bxe7 {[%clk 0:02:33]}  Qxe7 {[%clk 0:02:34]} 14. exf5 {[%clk 0:02:32]}  Bxf5 {[%clk 0:02:35]} 15. Nc3 {[%clk 0:02:32]}  Nf4 {[%clk 0:02:31]} 16. Ne2 {[%clk 0:02:25]}  Nxh3+ {[%clk 0:02:10]} 17. gxh3 {[%clk 0:02:16]}  Bxh3 {[%clk 0:02:11]} 18. Ng3 {[%clk 0:02:04]}  Bg4 {[%clk 0:02:05]} 19. Bc2 {[%clk 0:01:47]}  Bxf3 {[%clk 0:02:01]} 20. Qd3 {[%clk 0:01:46]}  Qh4 {[%clk 0:02:00]} 21. Qxh7+ {[%clk 0:01:41]}  Qxh7 {[%clk 0:01:59]} 22. Bxh7+ {[%clk 0:01:42]}  Kxh7 {[%clk 0:02:00]} 23. b4 {[%clk 0:01:35]}  Bd4 {[%clk 0:01:58]} 24. Rac1 {[%clk 0:01:34]}  Kg6 {[%clk 0:01:57]} 25. c5 {[%clk 0:01:34]}  Rh8 {[%clk 0:01:55]} 26. Rc4 {[%clk 0:01:29]}  Rh3 {[%clk 0:01:54]} 27. Rxd4 {[%clk 0:01:28]}  exd4 {[%clk 0:01:53]} 28. Re1 {[%clk 0:01:24]}  Rah8 {[%clk 0:01:50]} 0-1


[Site "https://www.chess.com"]

[Event "Titled Tuesday Blitz May 30 Early 2023"]
[White "vlajkovicS"]
[Black "Omariev, Maksim"]
[BlackFideId "4193423"]
[WhiteElo "2625"]
[BlackElo "2469"]
[Result "1-0"]
[Round "09"]
[TimeControl "180+2"]
[Date "2023.05.30"]
[WhiteClock "0:01:35"]
[BlackClock "0:00:00"]

1. d4 {[%clk 0:02:58]}  d5 {[%clk 0:02:59]} 2. c4 {[%clk 0:02:58]}  e6 {[%clk 0:02:59]} 3. Nc3 {[%clk 0:02:59]}  Nf6 {[%clk 0:02:59]} 4. Nf3 {[%clk 0:02:59]}  Be7 {[%clk 0:03:00]} 5. g3 {[%clk 0:02:59]}  O-O {[%clk 0:03:00]} 6. Bg2 {[%clk 0:02:59]}  dxc4 {[%clk 0:03:00]} 7. O-O {[%clk 0:02:59]}  c5 {[%clk 0:02:56]} 8. dxc5 {[%clk 0:02:59]}  Bxc5 {[%clk 0:02:55]} 9. Ne5 {[%clk 0:02:58]}  Nbd7 {[%clk 0:02:46]} 10. Nxc4 {[%clk 0:02:56]}  Qe7 {[%clk 0:02:46]} 11. a3 {[%clk 0:02:54]}  Nb6 {[%clk 0:02:43]} 12. Ne5 {[%clk 0:02:48]}  Nfd7 {[%clk 0:02:38]} 13. Nd3 {[%clk 0:02:47]}  Bd6 {[%clk 0:02:37]} 14. b4 {[%clk 0:02:46]}  Nc4 {[%clk 0:02:28]} 15. Nb5 {[%clk 0:02:42]}  Bb8 {[%clk 0:02:28]} 16. Bb2 {[%clk 0:02:38]}  a6 {[%clk 0:02:19]} 17. Nd4 {[%clk 0:02:37]}  Nxb2 {[%clk 0:02:07]} 18. Nxb2 {[%clk 0:02:37]}  Nb6 {[%clk 0:01:56]} 19. Qc2 {[%clk 0:02:30]}  e5 {[%clk 0:01:42]} 20. Nf5 {[%clk 0:02:29]}  Bxf5 {[%clk 0:00:35]} 21. Qxf5 {[%clk 0:02:28]}  Bd6 {[%clk 0:00:35]} 22. Rfd1 {[%clk 0:02:25]}  Rfd8 {[%clk 0:00:29]} 23. Rac1 {[%clk 0:02:13]}  Rab8 {[%clk 0:00:29]} 24. h4 {[%clk 0:02:06]}  g6 {[%clk 0:00:28]} 25. Qe4 {[%clk 0:02:04]}  Qe6 {[%clk 0:00:21]} 26. Qe3 {[%clk 0:02:01]}  Be7 {[%clk 0:00:11]} 27. Rxd8+ {[%clk 0:01:59]}  Bxd8 {[%clk 0:00:12]} 28. Nd3 {[%clk 0:01:59]}  Nc4 {[%clk 0:00:10]} 29. Qc5 {[%clk 0:01:55]}  Nxa3 {[%clk 0:00:06]} 30. Nxe5 {[%clk 0:01:52]}  Be7 {[%clk 0:00:06]} 31. Qe3 {[%clk 0:01:51]}  Nb5 {[%clk 0:00:04]} 32. f4 {[%clk 0:01:49]}  Bf6 {[%clk 0:00:02]} 33. Rc5 {[%clk 0:01:45]}  Re8 {[%clk 0:00:02]} 34. Bxb7 {[%clk 0:01:44]}  Nd6 {[%clk 0:00:02]} 35. Bxa6 {[%clk 0:01:44]}  Nf5 {[%clk 0:00:03]} 36. Qd3 {[%clk 0:01:44]}  Qe7 {[%clk 0:00:03]} 37. Bc4 {[%clk 0:01:42]}  Nd6 {[%clk 0:00:02]} 38. Bb3 {[%clk 0:01:42]}  Rb8 {[%clk 0:00:02]} 39. Rc6 {[%clk 0:01:40]}  Nf5 {[%clk 0:00:02]} 40. Bxf7+ {[%clk 0:01:38]}  Kh8 {[%clk 0:00:01]} 41. Re6 {[%clk 0:01:39]}  Qd8 {[%clk 0:00:00]} 42. Re8+ {[%clk 0:01:35]} 1-0


[Site "https://www.chess.com"]

[Event "Titled Tuesday Blitz May 30 Early 2023"]
[White "Ambartsumova, Karina"]
[Black "Jovic, Stanoje"]
[WhiteFideId "4166299"]
[BlackFideId "905020"]
[WhiteElo "2240"]
[BlackElo "2236"]
[Result "0-1"]
[Round "09"]
[TimeControl "180+2"]
[Date "2023.05.30"]
[WhiteClock "0:00:00"]
[BlackClock "0:00:09"]

1. Nf3 {[%clk 0:03:00]}  Nf6 {[%clk 0:02:59]} 2. c4 {[%clk 0:03:00]}  c5 {[%clk 0:02:58]} 3. Nc3 {[%clk 0:03:00]}  Nc6 {[%clk 0:02:58]} 4. d4 {[%clk 0:03:00]}  cxd4 {[%clk 0:02:57]} 5. Nxd4 {[%clk 0:03:01]}  g6 {[%clk 0:02:57]} 6. Nc2 {[%clk 0:03:00]}  Bg7 {[%clk 0:02:56]} 7. e4 {[%clk 0:03:00]}  O-O {[%clk 0:02:55]} 8. Be2 {[%clk 0:03:01]}  d6 {[%clk 0:02:55]} 9. O-O {[%clk 0:03:02]}  Be6 {[%clk 0:02:54]} 10. Be3 {[%clk 0:03:01]}  Rc8 {[%clk 0:02:53]} 11. f3 {[%clk 0:03:00]}  a6 {[%clk 0:02:52]} 12. Rc1 {[%clk 0:02:59]}  Qa5 {[%clk 0:02:51]} 13. Qd2 {[%clk 0:02:57]}  Rfd8 {[%clk 0:02:50]} 14. b3 {[%clk 0:02:42]}  Ng4 {[%clk 0:02:36]} 15. Nd5 {[%clk 0:02:22]}  Nxe3 {[%clk 0:02:19]} 16. Qxa5 {[%clk 0:02:00]}  Nxa5 {[%clk 0:02:12]} 17. Ncxe3 {[%clk 0:01:59]}  Bd4 {[%clk 0:02:01]} 18. Kh1 {[%clk 0:01:58]}  Bxe3 {[%clk 0:01:58]} 19. Nxe3 {[%clk 0:01:58]}  Nc6 {[%clk 0:01:50]} 20. f4 {[%clk 0:01:58]}  f5 {[%clk 0:01:44]} 21. Bd3 {[%clk 0:01:52]}  Nb4 {[%clk 0:01:38]} 22. Bb1 {[%clk 0:01:52]}  fxe4 {[%clk 0:01:38]} 23. Bxe4 {[%clk 0:01:30]}  b5 {[%clk 0:01:31]} 24. f5 {[%clk 0:01:21]}  gxf5 {[%clk 0:01:29]} 25. Bxf5 {[%clk 0:01:22]}  Bxf5 {[%clk 0:01:24]} 26. Nxf5 {[%clk 0:01:23]}  Rd7 {[%clk 0:01:18]} 27. Rc3 {[%clk 0:01:06]}  Kh8 {[%clk 0:00:51]} 28. Re3 {[%clk 0:00:39]}  e5 {[%clk 0:00:45]} 29. cxb5 {[%clk 0:00:24]}  axb5 {[%clk 0:00:45]} 30. Nh6 {[%clk 0:00:22]}  Nd5 {[%clk 0:00:34]} 31. Rg3 {[%clk 0:00:21]}  Nf4 {[%clk 0:00:31]} 32. Rg4 {[%clk 0:00:20]}  Ng6 {[%clk 0:00:29]} 33. Rb4 {[%clk 0:00:16]}  d5 {[%clk 0:00:25]} 34. Rxb5 {[%clk 0:00:16]}  d4 {[%clk 0:00:25]} 35. h4 {[%clk 0:00:14]}  d3 {[%clk 0:00:24]} 36. Ng4 {[%clk 0:00:09]}  d2 {[%clk 0:00:22]} 37. Ne3 {[%clk 0:00:10]}  Rc1 {[%clk 0:00:21]} 38. Nd1 {[%clk 0:00:10]}  Nf4 {[%clk 0:00:15]} 39. Rxe5 {[%clk 0:00:09]}  Nd3 {[%clk 0:00:15]} 40. Re8+ {[%clk 0:00:07]}  Kg7 {[%clk 0:00:15]} 41. Kh2 {[%clk 0:00:06]}  Nb2 {[%clk 0:00:15]} 42. h5 {[%clk 0:00:01]}  Rxd1 {[%clk 0:00:13]} 43. h6+ {[%clk 0:00:02]}  Kxh6 {[%clk 0:00:11]} 44. Rg8 {[%clk 0:00:00]}  Rxf1 {[%clk 0:00:09]} 0-1


[Site "https://www.chess.com"]